bitfinex/quotes_ETHUSD_20260131
["timestamp","ask_amount","ask_price","bid_price","bid_amount"]
[1769887847755,0.01276188,2410.5,2409.0,13.9780321]
[1769887848361,1.04993413,2410.4,2409.1,1.03773193]
[1769887848554,0.01276188,2410.1,2409.0,1.37105476]
[1769887848748,0.01276188,2410.1,2408.8,1.90782702]
[1769887848949,0.01276188,2410.1,2408.8,0.87]
[1769887849161,0.01276188,2410.0,2408.8,1.90785575]
[1769887849356,0.01276188,2410.0,2408.9,1.03781146]
[1769887849544,0.01276188,2410.1,2409.0,1.03777186]
[1769887850163,1.05006323,2410.1,2408.9,4.15121149]
[1769887850366,1.03730135,2410.1,2409.0,0.60590296]
[1769887851581,1.05006323,2410.1,2409.0,0.60590296]
[1769887851872,0.01276188,2409.9,2408.8,0.87]
[1769887852241,1.03743049,2409.8,2408.8,1.90784444]
[1769887852440,1.03741327,2409.9,2408.8,1.90784444]
[1769887852658,1.03741327,2409.9,2408.9,0.60605526]
[1769887853372,1.03741327,2409.9,2408.8,1.90785817]
[1769887853685,1.03741327,2409.9,2408.8,0.87]
[1769887853991,1.03741327,2409.9,2408.8,1.90785485]
[1769887854352,1.05017515,2409.9,2408.8,0.87]
[1769887854661,0.01276188,2409.6,2408.8,0.87]
[1769887854878,0.01276188,2409.7,2408.8,0.87]
[1769887855178,0.01276188,2409.6,2408.7,0.0011]
[1769887855483,0.01276188,2409.5,2408.7,0.0011]
[1769887856438,1.03760272,2409.4,2408.7,0.0011]
[1769887856685,12.67030663,2409.1,2407.6,0.0011]
[1769887856856,0.01276188,2409.0,2407.6,0.0011]
[1769887857062,12.65754475,2409.1,2407.6,1.03944717]
[1769887857248,1.26703066,2409.0,2407.7,1.03832534]
[1769887857457,1.26703066,2409.0,2407.6,1.0394512]
[1769887857664,1.26703066,2409.0,2407.6,0.0011]
[1769887857861,1.26703066,2409.0,2408.9,0.0011]
[1769887858084,1.26703066,2409.0,2407.6,0.0011]
[1769887858267,1.03781809,2408.9,2407.6,0.0011]
[1769887858464,1.03781809,2408.9,2407.7,0.0011]
[1769887859459,13.70812472,2408.9,2407.7,0.0011]
[1769887859689,12.67030663,2408.6,2406.7,0.0011]
[1769887859888,0.87,2408.5,2407.0,1.03860932]
[1769887860199,0.87,2408.5,2407.1,1.36455867]
[1769887860396,1.03803354,2408.4,2407.1,15.0101216]
[1769887860601,1.03797756,2408.6,2407.4,12.60697734]
[1769887861064,4.15082852,2409.2,2407.6,12.61973922]
[1769887861267,4.15082852,2409.2,2407.8,12.60697734]
[1769887861682,4.1635904,2409.2,2407.7,1.26325011]
[1769887861883,0.1024,2408.8,2407.2,12.61973922]
[1769887862202,0.01276188,2408.7,2406.8,13.64567695]
[1769887862496,0.01276188,2408.7,2406.7,4.15616062]
[1769887862497,12.65754475,2408.2,2406.7,0.0011]
[1769887862796,12.67030663,2408.2,2406.7,0.0011]
[1769887862981,12.65754475,2408.2,2406.7,0.0011]
[1769887863167,12.65754475,2408.2,2406.7,1.03986205]
[1769887863695,12.65754475,2408.2,2406.8,1.03872093]
[1769887863924,1.03799045,2408.5,2406.8,13.64569827]
[1769887864092,1.03799045,2408.5,2407.0,12.60697734]
[1769887864288,4.15137723,2408.9,2407.1,1.03859415]
[1769887864699,4.15137723,2408.9,2407.2,12.60697734]
[1769887865204,0.01276188,2408.7,2406.9,1.78144546]
[1769887865411,0.01276188,2408.7,2406.7,1.03986081]
[1769887865412,0.01276188,2408.3,2406.7,1.03986081]
[1769887865585,12.77270663,2408.1,2406.7,0.0011]
[1769887865785,12.67030663,2407.9,2406.7,0.0011]
[1769887865995,1.28106873,2407.8,2406.7,0.0011]
[1769887866196,0.01276188,2407.9,2406.7,0.0011]
[1769887866524,0.1024,2408.4,2407.0,1.03863144]
[1769887867314,1.05066614,2408.7,2407.0,15.55268331]
[1769887867520,0.01276188,2408.4,2407.0,1.90862858]
[1769887867684,0.01276188,2408.5,2407.0,1.90862858]
[1769887868288,1.03803354,2408.4,2407.0,1.90862823]
[1769887868715,1.05079542,2408.4,2406.7,13.64515187]
[1769887869014,1.03803354,2408.4,2407.0,14.68266586]
[1769887869795,1.03803354,2408.4,2407.2,0.0011]
[1769887869996,0.01276188,2408.3,2407.2,0.0011]
[1769887870214,0.01376188,2408.3,2407.2,0.0011]
[1769887870411,0.01276188,2408.1,2407.2,0.0011]
[1769887870720,0.53575032,2408.1,2407.2,0.0011]
[1769887871103,0.01276188,2407.8,2407.2,0.0011]
[1769887871303,0.01276188,2407.7,2407.2,0.0011]
[1769887871689,0.01276188,2407.4,2407.0,0.0011]
[1769887871915,0.01276188,2407.4,2406.7,0.0011]
[1769887872085,0.01276188,2406.9,2406.0,0.0011]
[1769887872510,1.03872361,2406.8,2406.0,0.0011]
[1769887872717,0.01276188,2406.5,2406.0,0.0011]
[1769887873022,0.01276188,2406.4,2406.0,0.0011]
[1769887873398,1.03872361,2406.8,2406.0,0.0011]
[1769887873609,1.05126975,2407.3,2406.0,0.0011]
[1769887873814,1.03850787,2407.3,2406.0,15.52923926]
[1769887874418,1.03850787,2407.3,2406.1,1.0390258]
[1769887874728,1.03850787,2407.3,2406.0,16.56827697]
[1769887874729,1.05126975,2407.3,2406.0,16.56827697]
[1769887874916,1.03850787,2407.3,2406.1,2.07245529]
[1769887875309,1.05126975,2407.3,2406.1,2.07245529]
[1769887875547,0.01276188,2407.2,2406.0,1.04015698]
[1769887875751,0.01276188,2406.7,2406.0,0.0011]
[1769887875911,0.01276188,2406.6,2406.0,0.0011]
[1769887876536,1.0388531,2406.5,2406.0,0.0011]
[1769887876858,0.01276188,2407.5,2406.0,0.0011]
[1769887877146,1.03846473,2407.4,2406.0,13.64515187]
[1769887877330,0.01276188,2407.2,2406.0,13.64515187]
[1769887877637,1.03846473,2407.4,2406.0,13.64515187]
[1769887878212,0.01276188,2407.2,2406.0,0.0011]
[1769887878421,1.0386373,2407.0,2406.0,0.0011]
[1769887878622,0.01276188,2406.8,2406.0,0.0011]
[1769887878827,0.01276188,2406.6,2406.0,0.0011]
[1769887879042,0.01276188,2406.4,2405.3,0.0844227]
[1769887879931,0.01276188,2406.4,2404.3,0.01276188]
[1769887879932,13.37812309,2406.1,2404.3,0.01276188]
[1769887880275,1.33781231,2406.0,2405.0,0.01276188]
[1769887880430,1.33781231,2406.0,2404.9,0.01276188]
[1769887880431,0.871,2406.1,2404.9,0.01276188]
[1769887880633,1.03906899,2406.0,2404.9,0.01276188]
[1769887881059,1.03906899,2406.0,2405.1,0.01276188]
[1769887881261,1.03906899,2406.0,2405.3,0.01276188]
[1769887881756,1.03906899,2406.0,2405.1,0.01276188]
[1769887882074,1.55860349,2406.0,2404.4,0.01276188]
[1769887882230,13.48052309,2405.9,2404.1,0.0011]
[1769887882562,13.37812309,2405.1,2403.8,1.84625073]
[1769887882872,1.34805231,2405.0,2404.1,0.01276188]
[1769887883157,0.871,2405.2,2403.9,0.00457972]
[1769887883661,0.871,2405.2,2404.0,0.01276188]
[1769887883831,0.871,2405.2,2404.1,0.01276188]
[1769887884032,0.871,2405.2,2404.2,0.00457972]
[1769887884250,0.871,2405.2,2403.7,0.00457972]
[1769887884562,1.03945781,2405.1,2403.5,0.01276188]
[1769887885268,1.03945781,2405.1,2403.4,1.05753112]
[1769887885573,1.03945781,2405.1,2403.6,1.04467743]
[1769887885780,1.03945781,2405.1,2404.1,0.01276188]
[1769887885941,1.03945781,2405.1,2403.6,13.64863159]
[1769887886284,1.03945781,2405.1,2403.7,0.00457972]
[1769887886562,1.03954426,2404.9,2403.5,0.00457972]
[1769887886755,0.53001213,2404.8,2403.5,0.00457972]
[1769887887638,13.9208971,2404.8,2403.5,0.00457972]
[1769887887837,13.39088497,2404.6,2403.5,0.00457972]
[1769887888067,0.01276188,2404.5,2403.5,1e-08]
[1769887888269,0.01276188,2404.1,2402.5,4.1623058]
[1769887888441,0.88376188,2404.1,2402.6,0.41623058]
[1769887888763,0.01276188,2404.4,2402.5,13.64405187]
[1769887888764,1.03976043,2404.4,2402.5,13.64405187]
[1769887888964,0.01276188,2404.3,2402.7,13.64405187]
[1769887889163,0.01276188,2403.8,2402.3,0.52290872]
[1769887889407,13.37812309,2402.0,2400.4,0.0844227]
[1769887889700,13.37812309,2402.0,2400.6,13.64405187]
[1769887889701,5.41499494,2402.0,2400.6,13.64405187]
[1769887889971,5.41499494,2402.0,2401.0,0.01276188]
[1769887889972,4.59845116,2402.0,2401.0,0.01276188]
[1769887890197,4.59845116,2402.0,2400.7,1.46010789]
[1769887890337,4.59845116,2402.0,2400.1,0.00720963]
[1769887890338,13.37812309,2401.4,2400.1,0.00720963]
[1769887890537,13.37812309,2401.4,2399.1,0.01276188]
[1769887890538,1.04127618,2400.9,2398.7,13.65681375]
[1769887890743,0.52191428,2400.8,2399.7,0.01276188]
[1769887891047,1.04124143,2401.0,2399.5,0.01276188]
[1769887891364,1.04092934,2401.7,2400.2,0.01276188]
[1769887891564,0.1024,2401.6,2400.1,0.01276188]
[1769887891769,0.53070467,2401.6,2400.2,0.01276188]
[1769887891982,1.04090984,2401.8,2400.8,0.01276188]
[1769887892275,0.1024,2401.7,2400.1,1.36823375]
[1769887892490,0.1024,2401.7,2399.9,0.88476188]
[1769887892639,1.04097268,2401.6,2400.2,0.01276188]
[1769887892838,1.040886,2401.8,2400.5,0.01276188]
[1769887893137,1.040886,2401.8,2399.9,1.0544671]
[1769887893340,1.040886,2401.8,2400.0,13.65681375]
[1769887893564,1.04086986,2401.9,2400.4,0.01276188]
[1769887893741,5.63926876,2402.0,2400.6,0.01276188]
[1769887893962,5.63926876,2402.0,2400.7,0.01276188]
[1769887894161,4.59845116,2402.0,2400.9,0.01276188]
[1769887894394,4.59845116,2402.0,2401.2,0.01276188]
[1769887894600,4.59845116,2402.0,2401.2,1.04114609]
[1769887894771,0.21747795,2402.3,2401.5,0.01276188]
[1769887895102,1.0403662,2403.0,2401.8,0.01276188]
[1769887895265,1.0403662,2403.0,2401.7,0.01276188]
[1769887895459,1.0403662,2403.0,2401.5,0.01276188]
[1769887895661,1.0403662,2403.0,2401.5,0.88476188]
[1769887895886,1.0403662,2403.0,2401.6,1.45288138]
[1769887896289,1.0403662,2403.0,2401.7,0.872]
[1769887896495,1.04023634,2403.3,2401.9,0.01276188]
[1769887896667,1.04023634,2403.3,2402.1,1.040756]
[1769887896991,1.04023634,2403.3,2402.0,1.04078636]
[1769887897167,1.04023634,2403.3,2402.1,1.46848382]
[1769887897762,1.04023634,2403.3,2402.0,1.04079434]
[1769887898472,4.16056972,2403.6,2402.0,14.64531425]
[1769887898677,4.16056972,2403.6,2401.9,4.16336167]
[1769887898873,1.0401065,2403.7,2402.1,0.01276188]
[1769887899202,1.0401065,2403.7,2402.0,0.01276188]
[1769887899408,0.54836934,2403.6,2402.0,1.98338668]
[1769887899692,0.54836934,2403.6,2402.0,1.9706248]
[1769887899911,0.54836934,2403.6,2402.0,1.98338668]
[1769887900120,1.0401065,2403.7,2402.1,0.01276188]
[1769887900606,1.0401065,2403.7,2402.2,0.01276188]
[1769887900775,1.32320566,2403.8,2402.3,1.05343123]
[1769887900964,1.32320566,2403.8,2402.3,1.04066935]
[1769887901166,0.2831609,2403.8,2402.4,0.53309656]
[1769887901473,0.2831609,2403.8,2402.7,0.01276188]
[1769887901667,0.2831609,2403.8,2402.8,0.88476188]
[1769887901985,1.32320256,2403.8,2402.8,0.872]
[1769887902186,1.32320256,2403.8,2402.5,0.01276188]
[1769887902367,0.2831609,2403.8,2402.9,0.872]
[1769887902877,1.04003679,2403.8,2402.9,0.872]
[1769887903199,1.04003679,2403.8,2402.4,0.52033468]
[1769887903411,1.04003679,2403.8,2402.4,1.04059994]
[1769887903697,1.04003679,2403.8,2402.5,1.04057552]
[1769887904023,1.04003679,2403.8,2402.0,5.0479228]
[1769887904304,1.04003679,2403.8,2402.9,1.04037651]
[1769887904508,1.04000373,2403.9,2403.0,0.52021597]
[1769887904797,4.15985455,2404.0,2403.0,1.5605573]
[1769887905103,4.15985455,2404.0,2403.0,1.04034133]
[1769887905392,1.03993344,2404.0,2402.9,1.91238044]
[1769887905595,1.03993344,2404.0,2403.0,1.04035895]
[1769887905967,1.03993344,2404.0,2403.1,0.607396]
[1769887906169,1.03993344,2404.0,2402.8,1.04043928]
[1769887906606,1.03993344,2404.0,2402.9,1.04038558]
[1769887906818,4.15970457,2404.1,2402.9,4.16162374]
[1769887907118,4.15970457,2404.1,2402.9,16.79300995]
[1769887907119,0.001,2403.8,2402.9,16.79300995]
[1769887907279,0.001,2403.8,2403.0,1.87054194]
[1769887907615,0.001,2403.8,2402.9,1.0404095]
[1769887907778,0.001,2403.8,2403.0,0.872]
[1769887908084,0.001,2403.8,2403.1,0.01276188]
[1769887908286,1.03963072,2404.7,2403.4,0.01276188]
[1769887908499,0.001,2404.8,2403.8,0.01276188]
[1769887908678,1.04059517,2404.8,2403.9,0.872]
[1769887908879,0.001,2404.8,2403.1,12.63138621]
[1769887909104,0.001,2404.8,2403.2,3.17539623]
[1769887909302,0.001,2404.8,2403.2,2.13513862]
[1769887909492,0.001,2404.8,2403.2,0.872]
[1769887909812,0.001,2404.8,2403.4,0.01276188]
[1769887909989,0.001,2404.8,2403.2,1.91225813]
[1769887910190,0.001,2404.8,2403.0,12.64414809]
[1769887910191,0.01276188,2404.3,2403.0,1.04035526]
[1769887910402,0.01276188,2404.6,2402.7,0.01276188]
[1769887910711,0.001,2404.8,2403.5,1.04013616]
[1769887910920,0.001,2404.8,2403.2,1.04027962]
[1769887911711,0.001,2404.8,2403.4,0.01276188]
[1769887912022,0.001,2404.8,2403.5,13.51614809]
[1769887912222,0.001,2404.8,2403.6,1.352891]
[1769887912512,0.001,2404.8,2403.5,13.50338621]
[1769887912688,0.001,2404.8,2403.5,0.872]
[1769887913496,0.001,2404.8,2403.5,1.91212065]
[1769887913814,0.001,2404.8,2403.6,12.64414809]
[1769887913990,0.001,2404.8,2403.7,1.45690306]
[1769887914889,0.001,2404.8,2403.7,1.46966494]
[1769887915086,0.001,2404.8,2403.8,0.01276188]
[1769887915312,0.001,2404.8,2403.9,0.872]
[1769887915533,13.78490057,2404.3,2402.6,1.26313862]
[1769887915826,0.01276188,2404.1,2402.5,1.04056736]
[1769887916001,0.01276188,2404.2,2402.6,1.56081911]
[1769887916320,0.01276188,2404.2,2402.0,0.01386188]
[1769887916321,13.77213869,2403.7,2402.0,1.05462985]
[1769887916619,0.01276188,2404.2,2402.0,1.05462985]
[1769887916620,0.1024,2404.6,2402.8,0.01276188]
[1769887916916,13.87453869,2404.6,2402.8,0.01276188]
[1769887917116,0.01276188,2403.7,2402.0,0.0011]
[1769887917315,13.88730057,2403.4,2402.0,0.0011]
[1769887917540,0.11516188,2403.1,2402.0,0.0011]
[1769887917689,0.01276188,2402.8,2401.8,0.0011]
[1769887918187,0.01276188,2403.0,2401.8,0.0011]
[1769887918389,1.04027962,2403.2,2401.8,0.0011]
[1769887918623,13.77213869,2402.2,2400.3,0.0011]
[1769887918856,13.77213869,2402.2,2400.0,0.01386188]
[1769887918857,13.77213869,2401.5,2400.0,0.0011]
[1769887919116,0.21744186,2400.9,2400.0,0.0011]
[1769887919506,1.04131956,2400.8,2400.0,0.0011]
[1769887921039,1.04131956,2400.8,2398.1,5.88881038]
[1769887921040,0.01276188,2399.4,2398.1,5.88881038]
[1769887921322,0.01276188,2399.4,2397.5,0.21730113]
[1769887921323,0.01276188,2398.7,2397.5,0.21730113]
[1769887921527,0.01276188,2398.8,2397.5,13.6741042]
[1769887921528,1.04218776,2398.8,2397.5,13.6741042]
[1769887922103,0.01276188,2396.9,2396.1,0.0008]
[1769887922395,0.21735908,2396.7,2394.9,12.63138621]
[1769887922821,0.21735908,2396.7,2394.5,4.17615427]
[1769887922822,0.21735908,2396.7,2395.1,4.17519002]
[1769887923109,0.21735908,2396.7,2395.1,4.17509362]
[1769887923305,0.21735908,2396.7,2395.9,4.17378691]
[1769887923627,0.21735908,2396.7,2395.9,0.873]
[1769887923931,1.04240503,2398.3,2396.5,0.01276188]
[1769887924230,0.01276188,2397.5,2395.7,1.04353633]
[1769887924429,0.01276188,2397.4,2395.7,1.91653633]
[1769887924620,0.01276188,2397.4,2395.7,1.04353633]
[1769887924922,0.01276188,2397.8,2395.7,1.04353633]
[1769887924923,0.52120252,2398.2,2396.2,12.64414809]
[1769887925130,4.16828734,2399.1,2397.0,0.01276188]
[1769887925425,4.16808503,2399.2,2397.3,1.04283986]
[1769887925630,0.01276188,2399.1,2397.4,0.52269612]
[1769887925800,0.01276188,2399.1,2396.7,0.24633218]
[1769887925801,0.01276188,2398.6,2396.8,1.04305463]
[1769887926003,0.01276188,2398.7,2397.0,1.04293458]
[1769887926206,0.01276188,2397.9,2395.8,0.52178439]
[1769887926400,0.01276188,2396.7,2395.2,0.41750936]
[1769887926596,0.01276188,2396.7,2394.6,5.04905095]
[1769887926818,0.11516188,2397.1,2395.2,1.04374836]
[1769887927023,13.78490057,2397.4,2395.2,1.04374836]
[1769887927228,13.71247351,2398.0,2395.7,0.01276188]
[1769887927427,1.04288336,2397.2,2395.6,0.873]
[1769887927630,0.01276188,2397.0,2395.4,1.04366702]
[1769887927929,0.01276188,2396.0,2394.7,1.04395162]
[1769887928231,0.2174,2394.8,2394.2,4.17674717]
[1769887928430,0.01276188,2394.4,2393.3,1.04455995]
[1769887928724,0.01276188,2394.6,2393.4,1.04533258]
[1769887928933,0.01276188,2393.8,2393.4,0.0008]
[1769887929136,13.71247351,2393.4,2391.4,0.0008]
[1769887929343,0.01276188,2393.5,2390.2,0.01276188]
[1769887929344,3.24680951,2392.4,2390.2,0.01276188]
[1769887929498,0.01276188,2389.9,2385.1,2.4307518]
[1769887929705,0.35964566,2389.8,2385.0,2.09078414]
[1769887929932,0.24527821,2387.1,2385.4,0.16749997]
[1769887930095,0.1024,2389.2,2384.1,0.22220602]
[1769887930096,7.47048987,2389.2,2388.4,0.01276188]
[1769887930300,1.25934539,2391.5,2385.3,13.43949183]
[1769887930301,0.48542276,2389.4,2385.3,13.43949183]
[1769887930599,8.72983526,2391.5,2385.3,13.43949183]
[1769887930600,0.29727782,2389.3,2387.5,13.43949183]
[1769887930927,0.29727782,2389.3,2387.6,2.29320464]
[1769887930928,0.01276188,2389.1,2387.6,2.29320464]
[1769887931252,0.28451594,2389.3,2387.7,2.29320464]
[1769887931412,0.28451594,2389.3,2387.6,0.874]
[1769887931413,0.01276188,2388.6,2387.6,0.874]
[1769887931726,1.04646747,2389.0,2386.9,0.01276188]
[1769887931931,0.01276188,2387.4,2385.2,13.43949183]
[1769887932120,0.01276188,2387.5,2382.6,0.01276188]
[1769887932121,0.01276188,2385.0,2383.9,9.32729174]
[1769887932335,0.01276188,2387.0,2384.3,14.48801107]
[1769887932500,0.01276188,2388.3,2385.5,13.45225371]
[1769887932698,1.04646747,2389.0,2387.2,0.01276188]
[1769887932920,4.19629964,2390.4,2388.1,0.01276188]
[1769887933124,1.33726638,2390.3,2388.5,13.45225371]
[1769887933324,0.29137256,2390.3,2389.2,0.01276188]
[1769887933492,4.19451835,2391.4,2389.5,13.43949183]
[1769887933695,4.19451835,2391.4,2389.6,1.34394918]
[1769887933696,0.01276188,2391.3,2389.6,1.34394918]
[1769887933894,0.10572773,2389.5,2389.4,1.68305851]
[1769887934098,17.89422998,2391.4,2389.5,1.68305851]
[1769887934344,4.18175647,2391.4,2389.3,0.01276188]
[1769887934638,4.17937894,2392.8,2390.7,0.01276188]
[1769887934798,4.17937894,2392.9,2391.4,0.01276188]
[1769887934997,1.04423374,2394.1,2391.7,0.01276188]
[1769887935348,4.17711273,2394.0,2392.3,0.01276188]
[1769887935544,4.17711273,2394.0,2391.9,0.01276188]
[1769887935746,4.17711273,2394.0,2392.2,0.01276188]
[1769887935961,4.17711273,2394.0,2392.8,0.01276188]
[1769887936244,1.04423374,2394.1,2392.9,0.01276188]
[1769887936416,1.04384133,2395.0,2393.4,0.01276188]
[1769887936612,1.04384133,2395.0,2394.0,0.01276188]
[1769887936816,1.04384133,2395.0,2393.5,1.68305851]
[1769887937041,1.04384133,2395.0,2394.0,0.01276188]
[1769887937231,1.04384133,2395.0,2393.6,1.69582039]
[1769887937232,1.04384133,2395.0,2393.3,1.68305851]
[1769887937436,0.01276188,2394.4,2393.4,1.68305851]
[1769887937630,4.17623721,2394.6,2392.7,0.01276188]
[1769887937844,1.04392851,2394.8,2393.4,0.01276188]
[1769887938043,1.04392851,2394.8,2393.2,0.01276188]
[1769887938262,1.04392851,2394.8,2393.3,1.68305851]
[1769887938945,0.21813676,2395.0,2393.7,0.01276188]
[1769887939147,1.04380437,2395.1,2393.7,0.01276188]
[1769887939448,0.01276188,2394.7,2393.8,1.68305851]
[1769887939620,1.04380437,2395.1,2393.1,1.69582039]
[1769887939819,1.04380437,2395.1,2393.4,0.01276188]
[1769887940023,1.04380437,2395.1,2393.5,1.69582039]
[1769887940337,1.04380437,2395.1,2393.5,1.68305851]
[1769887940534,1.05656625,2395.1,2393.6,0.875]
[1769887940738,0.21811603,2395.2,2393.7,0.24633218]
[1769887941059,4.18668026,2395.9,2394.0,0.01276188]
[1769887941261,0.2180814,2395.8,2394.4,0.01276188]
[1769887941421,0.01276188,2396.6,2394.9,0.01276188]
[1769887941422,1.04318798,2396.5,2394.9,0.01276188]
[1769887941616,0.01276188,2396.7,2394.6,0.2335703]
[1769887941859,0.21799943,2396.4,2394.8,1.63784837]
[1769887942229,0.01276188,2396.3,2394.8,1.63784837]
[1769887942455,0.01276188,2396.3,2393.8,0.01276188]
[1769887942456,0.01276188,2395.6,2393.3,13.45225371]
[1769887942658,0.01276188,2395.9,2393.8,1.63784837]
[1769887942949,0.01276188,2395.7,2393.7,0.01276188]
[1769887943167,0.01276188,2395.7,2393.6,0.01276188]
[1769887943346,0.01276188,2395.4,2393.4,1.65061025]
[1769887943661,1.04357989,2395.6,2393.9,0.0011]
[1769887943821,4.1740431,2395.8,2394.0,0.01276188]
[1769887944016,4.1740431,2395.8,2394.1,0.01276188]
[1769887944329,0.01276188,2394.7,2393.6,0.0011]
[1769887944528,0.01276188,2394.9,2393.7,1.63784837]
[1769887944733,1.05625465,2395.9,2393.8,0.875]
[1769887944943,1.05625465,2395.9,2394.0,0.2335703]
[1769887945136,0.01276188,2395.4,2393.9,1.88913321]
[1769887945451,0.01276188,2395.4,2393.9,1.86956344]
[1769887945751,1.04371059,2395.3,2393.9,1.86956344]
[1769887945939,1.04371059,2395.3,2393.9,1.63784837]
[1769887946120,0.01276188,2394.5,2392.7,0.0011]
[1769887946323,0.01276188,2394.5,2391.7,0.01276188]
[1769887946324,0.01276188,2393.8,2391.7,0.01276188]
[1769887946523,0.01276188,2393.8,2391.2,4.18183897]
[1769887946524,0.01276188,2393.5,2391.6,0.875]
[1769887946823,0.01276188,2393.1,2390.9,0.01276188]
[1769887947037,0.01276188,2392.8,2390.9,0.875]
[1769887947244,0.01276188,2392.7,2390.6,0.01276188]
[1769887947443,0.01276188,2392.6,2390.6,0.01276188]
[1769887947763,0.01276188,2392.6,2389.9,0.01276188]
[1769887947764,0.01276188,2392.0,2389.7,13.45225371]
[1769887947975,0.01276188,2391.0,2389.8,1.34522537]
[1769887948158,0.01276188,2391.3,2389.2,0.875]
[1769887948472,0.01276188,2391.2,2389.2,0.875]
[1769887948637,0.01276188,2390.7,2389.2,0.875]
[1769887948962,13.72523539,2391.9,2389.0,0.01276188]
[1769887949165,0.01276188,2391.3,2389.2,0.01276188]
[1769887949336,0.01276188,2390.6,2388.3,0.875]
[1769887949536,0.01276188,2390.6,2388.6,0.01276188]
[1769887949537,1.04585006,2390.4,2388.6,0.01276188]
[1769887949738,1.04585006,2390.4,2388.9,0.01276188]
[1769887950064,0.11516188,2391.8,2389.7,0.01276188]
[1769887950271,0.01276188,2391.0,2389.0,0.876]
[1769887950491,0.01276188,2391.3,2389.3,0.01276188]
[1769887950663,0.01276188,2390.2,2388.6,13.43949183]
[1769887950991,0.01276188,2390.6,2388.1,1.04681615]
[1769887951158,0.01276188,2390.2,2388.6,1.04663659]
[1769887951362,0.01276188,2390.0,2388.7,0.876]
[1769887951661,0.01276188,2390.0,2385.7,1.04791046]
[1769887951662,0.01276188,2387.4,2385.7,1.04791046]
[1769887951862,0.01276188,2387.3,2385.8,1.0303011]
[1769887952090,0.01276188,2388.6,2386.0,13.45225371]
[1769887952301,0.01276188,2388.9,2386.6,0.01276188]
[1769887952476,4.19703737,2390.0,2387.4,13.45225371]
[1769887952660,0.21770113,2389.6,2387.9,0.01276188]
[1769887952867,1.04571882,2390.7,2388.6,13.45225371]
[1769887953070,1.04571882,2390.7,2388.8,0.01276188]
[1769887953288,0.01276188,2390.4,2388.9,0.28869704]
[1769887953490,0.01276188,2390.0,2388.9,0.28869704]
[1769887953664,1.04606887,2389.9,2388.9,0.28869704]
[1769887953859,0.01276188,2389.8,2388.7,0.876]
[1769887954127,0.01276188,2389.7,2387.8,13.43949183]
[1769887954394,1.04606887,2389.9,2388.4,1.04672154]
[1769887954628,1.04606887,2389.9,2387.9,0.01276188]
[1769887954629,1.05883075,2389.9,2387.1,13.43949183]
[1769887954781,0.01276188,2389.2,2387.2,1.16469704]
[1769887955093,0.01276188,2389.3,2387.4,0.01276188]
[1769887955301,0.01276188,2387.6,2385.5,13.43949183]
[1769887955593,0.01276188,2387.6,2384.4,1.507]
[1769887955594,0.21773863,2386.1,2385.4,0.876]
[1769887955803,1.04738363,2386.9,2385.5,0.28869704]
[1769887956094,1.04690117,2388.0,2386.0,0.01276188]
[1769887956294,1.05966305,2388.0,2385.8,13.43949183]
[1769887956591,1.04681349,2388.2,2386.1,0.01276188]
[1769887956798,1.0467647,2388.4,2387.7,0.0011]
[1769887957018,1.04637535,2389.2,2387.8,0.27108425]
[1769887957297,0.01276188,2387.8,2386.2,13.04233245]
[1769887957466,0.01276188,2387.6,2386.3,0.22108425]
[1769887957666,1.06010163,2387.0,2386.0,0.22108425]
[1769887957923,1.04720814,2387.4,2386.0,1.09808425]
[1769887958242,1.05940007,2388.6,2386.4,13.04233245]
[1769887958527,1.05940007,2388.6,2386.5,14.45132965]
[1769887958722,0.01276188,2388.0,2386.5,14.45132965]
[1769887958908,0.01276188,2388.3,2386.6,0.87927168]
[1769887959091,1.04663819,2388.6,2386.7,0.24633218]
[1769887959428,1.04662146,2388.7,2386.9,0.01276188]
[1769887959600,4.18637752,2388.9,2386.9,1.04738363]
[1769887959803,1.05922483,2389.0,2387.0,0.00227168]
[1769887960099,1.0460251,2390.0,2387.8,0.01276188]
[1769887960316,0.01276188,2389.5,2387.3,13.05509433]
[1769887960624,0.01276188,2388.9,2387.4,0.00227168]
[1769887960826,0.01276188,2388.9,2387.2,0.87927168]
[1769887961003,0.01276188,2389.1,2387.2,0.877]
[1769887961203,0.01276188,2388.8,2387.3,0.00227168]
[1769887961416,0.01276188,2388.8,2386.5,1.4089972]
[1769887961417,0.01276188,2388.1,2386.5,1.4089972]
[1769887961626,0.01276188,2388.1,2385.5,13.28107476]
[1769887961627,1.04716427,2387.4,2385.5,13.28107476]
[1769887961810,1.04716427,2387.4,2385.7,0.877]
[1769887962123,1.04716427,2387.4,2384.9,0.01276188]
[1769887962124,0.01276188,2386.5,2385.3,0.00227168]
[1769887962337,4.20141899,2387.7,2385.5,1.04797371]
[1769887962632,0.01276188,2387.4,2385.5,1.04797371]
[1769887962831,0.01276188,2387.7,2385.6,0.52626838]
[1769887963000,0.01276188,2387.7,2385.6,0.53903026]
[1769887963207,0.01276188,2387.6,2385.6,13.80734314]
[1769887963418,0.01276188,2387.4,2385.7,0.877]
[1769887963603,1.0470327,2387.7,2385.8,1.06062842]
[1769887963803,1.04672584,2388.4,2386.3,0.01276188]
[1769887964121,13.37911642,2389.5,2386.8,0.01276188]
[1769887964314,1.04641915,2389.1,2387.2,0.01276188]
[1769887964630,0.01276188,2389.6,2387.2,0.01276188]
[1769887964631,1.26474357,2389.9,2388.6,0.01276188]
[1769887964799,1.26474357,2389.9,2388.5,0.877]
[1769887965124,1.04589382,2390.3,2388.6,0.00227168]
[1769887965325,0.43492131,2390.4,2388.6,0.00227168]
[1769887965533,1.04585364,2390.4,2388.6,0.01276188]
[1769887965840,4.19616214,2390.6,2388.6,1.92363234]
[1769887966024,0.01276188,2390.5,2388.6,1.92363234]
[1769887966207,4.19616214,2390.6,2388.6,1.92363234]
[1769887966535,4.18340026,2390.6,2388.6,1.92363234]
[1769887966734,0.01276188,2390.6,2388.7,0.6122947]
[1769887966923,0.01276188,2390.5,2388.7,0.6122947]
[1769887967128,0.01276188,2390.2,2388.7,0.6122947]
[1769887967309,0.01276188,2389.7,2387.5,1.047117]
[1769887967657,0.01276188,2388.6,2386.5,13.28107476]
[1769887967814,4.1991394,2389.0,2386.8,0.01276188]
[1769887967815,1.04646295,2389.0,2386.8,0.01276188]
[1769887968008,1.04646295,2389.0,2387.0,0.01276188]
[1769887968201,0.01276188,2388.7,2386.8,0.62802425]
[1769887968401,0.01276188,2388.6,2386.8,0.61526237]
[1769887968604,0.01276188,2388.5,2386.8,0.61526237]
[1769887968851,1.04646295,2389.0,2386.9,0.26673336]
[1769887969025,0.01276188,2388.6,2386.9,0.25397148]
[1769887969227,1.04646295,2389.0,2387.1,0.01276188]
[1769887969424,0.01276188,2388.5,2386.9,0.25397148]
[1769887969628,0.01276188,2388.8,2387.1,1.04729588]